fUST/lending_fUST_20260305
["ID","MTS","AMOUNT","RATE_DAILY","PERIOD"]
[407682458,1772667038719,-934.94120138,9.031e-05,2]
[407682459,1772667038729,-300.0,9.05e-05,2]
[407682460,1772667038738,-500.0,9.129e-05,2]
[407682461,1772667038748,-500.0,9.129e-05,2]
[407682462,1772667038757,-500.0,9.129e-05,2]
[407682463,1772667038766,-500.0,9.129e-05,2]
[407682464,1772667038775,-500.0,9.129e-05,2]
[407682465,1772667038784,-500.0,9.129e-05,2]
[407682466,1772667038794,-500.0,9.129e-05,2]
[407682467,1772667038803,-616.5898606,9.129e-05,2]
[407682468,1772667038813,-500.0,9.129e-05,2]
[407682469,1772667038822,-500.0,9.129e-05,2]
[407682470,1772667038831,-500.0,9.129e-05,2]
[407682471,1772667038841,-500.0,9.129e-05,2]
[407682472,1772667038850,-500.0,9.129e-05,2]
[407682473,1772667038859,-500.0,9.129e-05,2]
[407682474,1772667038870,-500.0,9.129e-05,2]
[407682475,1772667038880,-500.0,9.129e-05,2]
[407682476,1772667038890,-500.0,9.129e-05,2]
[407682477,1772667038901,-500.0,9.129e-05,2]
[407682478,1772667038911,-442.05917784,9.129e-05,2]
[407682479,1772667038920,-500.0,9.129e-05,2]
[407682480,1772667038929,-12267.36386075,9.131e-05,2]
[407682481,1772667038940,-1463.32666253,9.131e-05,2]
[407682482,1772667038956,-699.04651441,9.131e-05,2]
[407682509,1772667046449,-691.3977303,9.131e-05,2]
[407682514,1772667046941,-4183.93527146,9.131e-05,2]
[407682515,1772667046951,-2369.48196967,9.131e-05,2]
[407682516,1772667046960,-2150.738,9.225e-05,2]
[407682517,1772667046969,-6089.75871456,9.231e-05,2]
[407682518,1772667046980,-3037.00304111,9.231e-05,2]
[407682519,1772667081069,-433.0,8.27e-05,2]
[407682520,1772667081099,-731.0,8.27e-05,2]
[407682545,1772668231657,-1092.58773483,8.2e-05,2]
[407682547,1772668231669,-780.14008903,8.2e-05,2]
[407682549,1772668231680,-433.45811007,8.2e-05,2]
[407682553,1772668231703,-481.42406607,8.2e-05,2]
[407682555,1772668231712,-535.0,8.2e-05,2]
[407682557,1772668231721,-144.30101782,8.235e-05,2]
[407682559,1772668231734,-173.79214302,8.235e-05,2]
[407682561,1772668231744,-151.0,8.269e-05,2]
[407682563,1772668231753,-1388.0,8.27e-05,2]
[407682565,1772668231762,-316.90571678,8.491e-05,2]
[407682567,1772668231771,-976.94383858,8.628e-05,2]
[407682636,1772668237861,-283.69564,8.628e-05,2]
[407682752,1772668240842,-341.44406342,8.628e-05,2]
[407682775,1772668243082,-470.31115789,8.628e-05,2]
[407682776,1772668243093,-1319.90079212,8.628e-05,2]
[407682788,1772668245751,-1778.91511958,8.628e-05,2]
[407682794,1772668245808,-5333.7538258,8.628e-05,2]
[407682797,1772668245818,-500.0,8.727e-05,2]
[407682799,1772668245827,-215.78435309,8.727e-05,2]
[407682800,1772668245837,-500.0,8.727e-05,2]
[407682802,1772668245846,-500.0,8.727e-05,2]
[407682805,1772668245856,-500.0,8.727e-05,2]
[407682807,1772668245866,-352.98476919,8.727e-05,2]
[407682817,1772668245951,-48.85854865,8.727e-05,2]
[407682819,1772668245961,-500.0,8.727e-05,2]
[407682821,1772668245971,-500.0,8.727e-05,2]
[407682823,1772668245980,-160.93763539,8.727e-05,2]
[407682826,1772668245997,-339.06236461,8.727e-05,2]
[407682828,1772668246007,-500.0,8.727e-05,2]
[407682830,1772668246016,-500.0,8.727e-05,2]
[407682832,1772668246026,-500.0,8.727e-05,2]
[407682834,1772668246036,-500.0,8.727e-05,2]
[407682836,1772668246045,-500.0,8.727e-05,2]
[407682838,1772668246054,-481.55225999,8.727e-05,2]
[407682840,1772668246064,-500.0,8.727e-05,2]
[407682842,1772668246073,-218.79335205,8.727e-05,2]
[407682844,1772668246082,-500.0,8.727e-05,2]
[407682846,1772668246092,-468.74909875,8.727e-05,2]
[407682848,1772668246101,-500.0,8.727e-05,2]
[407682850,1772668246110,-500.0,8.727e-05,2]
[407682852,1772668246120,-500.0,8.727e-05,2]
[407682854,1772668246129,-500.0,8.727e-05,2]
[407682856,1772668246139,-2615.52018416,8.728e-05,2]
[407683023,1772669432271,-890.79301902,7.081e-05,2]
[407683025,1772669432281,-2916.57489368,7.153e-05,2]
[407683027,1772669432292,-2083.42510632,7.153e-05,2]
[407683029,1772669432303,-17.68369757,7.225e-05,2]
[407683032,1772669432315,-504.31630243,7.225e-05,2]
[407683034,1772669432325,-269.30576403,7.262e-05,2]
[407683036,1772669432338,-42.42553359,7.262e-05,2]
[407683038,1772669432348,-658.0664497,7.989e-05,2]
[407683040,1772669432357,-299.50801671,8.267e-05,2]
[407683180,1772669438045,-900.49198329,8.267e-05,2]
[407683182,1772669438055,-203.67894471,8.269e-05,2]
[407683185,1772669438071,-32.32105529,8.269e-05,2]
[407683187,1772669438080,-300.0,8.269e-05,2]
[407683189,1772669438089,-199.04154471,8.727e-05,2]
[407683714,1772669443189,-433.0,8.27e-05,2]
[407683716,1772669443198,-433.0,8.27e-05,2]
[407683718,1772669443207,-241.9990059,8.727e-05,2]
[407683720,1772669443221,-692.39824818,8.727e-05,2]
[407683982,1772669446023,-4784.07820252,8.727e-05,2]
[407683984,1772669446035,-1924.47342556,8.727e-05,2]
[407683986,1772669446045,-8499.203834,8.728e-05,2]
[407684002,1772669446190,-8353.99910564,8.728e-05,2]
[407684004,1772669446200,-500.0,8.809e-05,2]
[407684006,1772669446210,-500.0,8.809e-05,2]
[407684008,1772669446220,-500.0,8.809e-05,2]
[407684010,1772669446230,-500.0,8.809e-05,2]
[407684012,1772669446239,-500.0,8.809e-05,2]
[407684014,1772669446249,-46.22687956,8.809e-05,2]
[407684018,1772669446272,-599.94229821,8.809e-05,2]
[407684020,1772669446282,-173.24214849,8.809e-05,2]
[407686418,1772669534116,1219.0,4e-05,2]
[407686453,1772670632019,-668.3740269,4.851e-05,2]
[407686455,1772670632028,-157.98,6.6e-05,2]
[407686457,1772670632040,-336.99348211,6.938e-05,2]
[407686459,1772670632051,-27.97916978,6.938e-05,2]
[407686462,1772670632061,-241.10807605,8e-05,2]
[407686466,1772670632089,-1507.66142158,8e-05,2]
[407686468,1772670632101,-2687.28951441,8e-05,2]
[407686524,1772670638260,-2755.97037064,8e-05,2]
[407686526,1772670638271,-157.98,8.2e-05,2]
[407686528,1772670638282,-500.0,8.23e-05,2]
[407686530,1772670638291,-512.83911223,8.23e-05,2]
[407686532,1772670638300,-500.0,8.23e-05,2]
[407686534,1772670638309,-500.0,8.23e-05,2]
[407686535,1772670638318,-500.0,8.23e-05,2]
[407686537,1772670638328,-424.77367323,8.23e-05,2]
[407686539,1772670638337,-2616.87167374,8.23e-05,2]
[407686541,1772670638348,-200.0,8.269e-05,2]
[407686543,1772670638358,-200.0,8.269e-05,2]
[407686545,1772670638367,-200.0,8.269e-05,2]
[407686547,1772670638377,-200.0,8.269e-05,2]
[407686549,1772670638387,-181.89,8.269e-05,2]
[407686551,1772670638396,-200.0,8.27e-05,2]
[407686553,1772670638405,-200.0,8.27e-05,2]
[407686555,1772670638414,-4774.0131616,8.482e-05,2]
[407686557,1772670638423,-4006.1235145,8.482e-05,2]
[407686559,1772670638432,-200.0,8.727e-05,2]
[407686561,1772670638442,-200.0,8.727e-05,2]
[407686563,1772670638451,-200.0,8.727e-05,2]
[407686565,1772670638461,-200.0,8.727e-05,2]
[407686567,1772670638473,-200.0,8.727e-05,2]
[407686569,1772670638484,-200.0,8.728e-05,2]
[407686571,1772670638493,-200.0,8.728e-05,2]
[407686573,1772670638502,-200.0,8.809e-05,2]
[407686575,1772670638511,-200.0,8.809e-05,2]
[407686577,1772670638520,-200.0,8.809e-05,2]
[407686579,1772670638530,-200.0,8.809e-05,2]
[407686581,1772670638540,-200.0,8.809e-05,2]
[407686583,1772670638549,-200.0,8.809e-05,2]
[407686585,1772670638558,-200.0,8.809e-05,2]
[407686587,1772670638567,-200.0,8.809e-05,2]
[407686589,1772670638577,-420.64644625,8.938e-05,2]
[407686591,1772670638586,-285.0,9.004e-05,2]
[407686593,1772670638595,-482.31488912,9.1e-05,2]
[407686595,1772670638605,-292.08379823,9.298e-05,2]
[407686597,1772670638613,-500.0,9.298e-05,2]
[407686598,1772670638623,-392.34810634,9.298e-05,2]
[407686600,1772670638632,-500.0,9.298e-05,2]
[407686602,1772670638641,-500.0,9.298e-05,2]
[407686604,1772670638650,-500.0,9.298e-05,2]
[407686606,1772670638659,-500.0,9.298e-05,2]
[407686608,1772670638669,-500.0,9.298e-05,2]
[407686610,1772670638678,-501.68302144,9.298e-05,2]
[407686612,1772670638688,-500.0,9.298e-05,2]
[407686614,1772670638698,-500.0,9.298e-05,2]
[407686616,1772670638707,-500.0,9.298e-05,2]
[407686618,1772670638717,-500.0,9.298e-05,2]
[407686620,1772670638727,-500.0,9.298e-05,2]
[407686622,1772670638736,-500.0,9.298e-05,2]
[407686624,1772670638746,-423.9052269,9.298e-05,2]
[407686626,1772670638756,-413.65549906,9.298e-05,2]
[407686628,1772670638766,-500.0,9.298e-05,2]
[407686630,1772670638775,-500.0,9.298e-05,2]
[407686632,1772670638785,-5645.67630603,9.301e-05,2]
[407686843,1772670646213,-731.0,8.633e-05,2]
[407686844,1772670646222,-7786.98699092,9.301e-05,2]
[407686846,1772670646232,-162.380719,9.499e-05,2]
[407686848,1772670646241,-445.202766,9.499e-05,2]
[407686850,1772670646250,-250.0,9.499e-05,2]
[407686852,1772670646259,-518.64431118,9.499e-05,2]
[407686853,1772670646268,-500.0,9.499e-05,2]
[407686854,1772670646278,-250.0,9.499e-05,2]
[407686855,1772670646287,-500.0,9.499e-05,2]
[407686856,1772670646296,-250.0,9.499e-05,2]
[407686857,1772670646305,-500.0,9.499e-05,2]
[407686858,1772670646314,-250.0,9.499e-05,2]
[407686859,1772670646323,-500.0,9.499e-05,2]
[407686860,1772670646332,-250.0,9.499e-05,2]
[407686861,1772670646342,-500.0,9.499e-05,2]
[407686863,1772670646351,-250.0,9.499e-05,2]
[407686864,1772670646360,-500.0,9.499e-05,2]
[407686865,1772670646369,-162.380719,9.499e-05,2]
[407686866,1772670646378,-250.0,9.499e-05,2]
[407686867,1772670646387,-250.0,9.499e-05,2]
[407686868,1772670646396,-168.3888056,9.499e-05,2]
[407686869,1772670646406,-250.0,9.499e-05,2]
[407686870,1772670646415,-250.0,9.499e-05,2]
[407686871,1772670646425,-174.61919141,9.499e-05,2]
[407686872,1772670646434,-250.0,9.499e-05,2]
[407686873,1772670646444,-250.0,9.499e-05,2]
[407686874,1772670646454,-250.0,9.499e-05,2]
[407686875,1772670646463,-181.08010149,9.499e-05,2]
[407686876,1772670646472,-207.13825911,9.499e-05,2]
[407686877,1772670646485,-250.0,9.499e-05,2]
[407686878,1772670646495,-187.78006525,9.499e-05,2]
[407686879,1772670646504,-250.0,9.499e-05,2]
[407686880,1772670646515,-194.72792766,9.499e-05,2]
[407686881,1772670646528,-201.93286099,9.499e-05,2]
[407686882,1772670646542,-209.40437684,9.499e-05,2]
[407686884,1772670646552,-217.15233878,9.499e-05,2]
[407686886,1772670646561,-250.0,9.499e-05,2]
[407686887,1772670646571,-225.18697532,9.499e-05,2]
[407686888,1772670646580,-274.83919347,9.499e-05,2]
[407686889,1772670646590,-537.6845,9.499e-05,2]
[407686890,1772670646599,-300.73852836,9.499e-05,2]
[407686891,1772670646608,-250.0,9.499e-05,2]
[407686892,1772670646618,-250.0,9.499e-05,2]
[407686893,1772670646629,-250.0,9.499e-05,2]
[407686894,1772670646639,-2150.738,9.499e-05,2]
[407686895,1772670646650,-1065.2263213,9.563e-05,2]
[407686896,1772670646659,-893.8869813,9.563e-05,2]
[407686897,1772670646668,-186.6388087,9.568e-05,2]
[407686898,1772670646677,-458.01888601,9.6e-05,2]
[407686899,1772670646687,-191.92063578,9.8e-05,2]
[407686900,1772670646696,-5000.0,9.8e-05,2]
[407686901,1772670646706,-237.6841196,9.804e-05,2]
[407686902,1772670646715,-199.4531453,9.804e-05,2]
[407686903,1772670646724,-861.13078732,9.863e-05,2]
[407686904,1772670646736,-40.93555993,9.863e-05,2]
[407686905,1772670646747,-500.0,9.863e-05,2]
[407686906,1772670646756,-543.10090619,9.979e-05,2]
[407686907,1772670646765,-9829.86721819,9.98e-05,2]
[407686909,1772670683962,-2336.61767436,8.545e-05,2]
[407686924,1772671702664,5000.0,0.000157,120]
[407687008,1772671838314,-681.13145485,4.706e-05,2]
[407687009,1772671838324,-2663.38232564,4.754e-05,2]
[407687010,1772671838333,-298.07906936,4.827e-05,2]
[407687011,1772671838342,-351.73330185,6.827e-05,2]
[407687012,1772671838351,-211.36,8.5e-05,7]
[407687013,1772671838360,-731.0,8.631e-05,2]
[407687014,1772671838370,-150.0,8.631e-05,2]
[407687015,1772671838380,-405.38753433,8.827e-05,2]
[407687016,1772671838391,-289.0,8.996e-05,2]
[407687017,1772671838402,-31867.87003275,8.997e-05,2]
[407687018,1772671838415,-1777.77376106,8.997e-05,2]
[407687019,1772671838441,-16354.35620619,8.997e-05,2]
[407687020,1772671838450,-300.0,8.997e-05,2]
[407687021,1772671838460,-300.0,8.997e-05,2]
[407687022,1772671838470,-300.0,8.997e-05,2]
[407687023,1772671838482,-6802.77932438,9e-05,2]
[407687024,1772671838494,-222.74181454,9e-05,2]
[407687025,1772671838503,-175.26,9e-05,2]
[407687026,1772671838512,-173.12457905,9e-05,2]
[407687027,1772671838521,-312.7,9.295e-05,2]
[407687028,1772671838530,-233.506032,9.32e-05,2]
[407687029,1772671838539,-180.62727801,9.495e-05,2]
[407687030,1772671838548,-250.0,9.495e-05,2]
[407687031,1772671838558,-547.84664643,9.495e-05,2]
[407687032,1772671838567,-352.37144478,9.495e-05,2]
[407687033,1772671838576,-2150.738,9.495e-05,2]
[407687034,1772671838585,-20002.321691,9.5e-05,2]
[407687035,1772671838595,-150.0,9.726e-05,2]
[407687036,1772671838605,-213.90317119,9.781e-05,2]
[407687037,1772671838616,-155.0,9.8e-05,2]
[407687038,1772671838625,-155.0,9.8e-05,2]
[407687039,1772671838634,-461.74551293,9.817e-05,2]
[407687040,1772671838643,-500.0,9.863e-05,2]
[407687041,1772671838895,-500.0,9.863e-05,2]
[407687042,1772671838918,-500.0,9.863e-05,2]
[407687043,1772671838928,-500.0,9.863e-05,2]
[407687044,1772671838939,-541.03284156,9.9e-05,2]
[407687045,1772671838950,-1001.03705801,9.9e-05,2]
[407687046,1772671838960,-1082.07395534,9.9e-05,2]
[407687047,1772671838970,-887.56545033,9.9e-05,2]
[407687048,1772671838981,-345.55147598,9.9e-05,2]
[407687049,1772671838991,-575.59482254,9.9e-05,2]
[407687050,1772671839000,-412.48,9.9e-05,2]
[407687051,1772671839010,-440.69446309,9.937e-05,2]
[407687052,1772671839022,-27652.70518916,9.98e-05,2]
[407687057,1772671840764,-1903.27946898,9.98e-05,2]
[407687058,1772671841322,-1186.96651919,9.98e-05,2]
[407687059,1772671841334,-4561.02928109,9.98e-05,2]
[407687060,1772671841345,-749.58,9.98e-05,2]
[407687070,1772671844847,-400.0,8.631e-05,2]
[407687071,1772671844903,-33.0,8.631e-05,2]
[407687072,1772671844914,-253.73043784,9.88e-05,2]
[407687073,1772671844928,-2883.95758183,9.98e-05,2]
[407687074,1772671844940,-694.40031372,9.98e-05,2]
[407687079,1772671846399,-2372.61730873,9.98e-05,2]
[407687080,1772671846408,-191.92063579,9.98e-05,2]
[407687081,1772671846418,-17971.26726919,0.0001,2]
[407687171,1772673032317,-2154.07098926,4.876e-05,2]
[407687173,1772673032328,-545.83712939,4.876e-05,2]
[407687179,1772673032376,-2300.09188135,4.876e-05,2]
[407687181,1772673032385,-276.97507125,4.95e-05,2]
[407687183,1772673032394,-306.6966,6.5e-05,2]
[407687185,1772673032404,-326.83058408,6.95e-05,2]
[407687187,1772673032413,-162.762075,8.506e-05,2]
[407687189,1772673032423,-300.0,8.724e-05,2]
[407687191,1772673032433,-2698.90117038,8.725e-05,2]
[407687248,1772673038537,-2712.137328,8.725e-05,2]
[407687249,1772673038549,-5787.02889202,8.725e-05,2]
[407687250,1772673038558,-9616.7611125,8.747e-05,2]
[407687251,1772673038568,-26265.73834495,8.947e-05,2]
[407687252,1772673038577,-376.6860969,8.95e-05,2]
[407687253,1772673038587,-26731.40629048,9.247e-05,2]
[407687254,1772673038596,-27950.22505898,9.347e-05,2]
[407687255,1772673038605,-163.87837203,9.347e-05,2]
[407687256,1772673038615,-15298.7767304,9.515e-05,2]
[407687257,1772673038624,-164.3601566,9.515e-05,2]
[407687258,1772673038634,-500.0,9.53e-05,2]
[407687259,1772673038643,-30901.32611195,9.547e-05,2]
[407687260,1772673038652,-500.0,9.585e-05,2]
[407687261,1772673038661,-185.41525337,9.64e-05,2]
[407687262,1772673038671,-178.31481418,9.726e-05,2]
[407687263,1772673038681,-32746.55376077,9.747e-05,2]
[407687264,1772673038690,-168.1167427,9.8e-05,2]
[407687265,1772673038701,-302.61013686,9.8e-05,2]
[407687266,1772673038710,-34759.82814024,9.847e-05,2]
[407687267,1772673038722,-311.24256656,9.847e-05,2]
[407687268,1772673038731,-500.0,9.863e-05,2]
[407687269,1772673038740,-341.14912786,9.942e-05,2]
[407687270,1772673038750,-821.02693853,9.994e-05,2]
[407687277,1772673043815,-484.632,8.633e-05,2]
[407687278,1772673043824,-209.76863626,9.894e-05,2]
[407687294,1772673046570,-1519.67626721,9.894e-05,2]
[407687447,1772674004718,471.4,4e-05,2]
[407687455,1772674223569,151.0,0.000158,120]
[407687491,1772674231955,-3168.85606176,4.827e-05,2]
[407687492,1772674231968,-1831.14393824,4.827e-05,2]
[407687493,1772674231977,-257.36523621,4.926e-05,2]
[407687494,1772674231987,-157.98,6.1e-05,2]
[407687495,1772674231997,-303.69097873,6.926e-05,2]
[407687496,1772674232009,-157.98,7.2e-05,2]
[407687497,1772674232019,-639.6987353,7.58e-05,2]
[407687498,1772674232029,-1273.6264365,7.591e-05,2]
[407687499,1772674232039,-157.98,8.2e-05,2]
[407687500,1772674232048,-300.0,8.832e-05,2]
[407687501,1772674232059,-350.01672124,8.926e-05,2]
[407687502,1772674232068,-5867.3057574,9.446e-05,2]
[407687503,1772674232078,-848.6081275,9.446e-05,2]
[407687504,1772674232087,-991.26900363,9.446e-05,2]
[407687521,1772674241062,-2288.83409447,9.446e-05,2]
[407687522,1772674241073,-379.17769724,9.699e-05,2]
[407687523,1772674241083,-233.506032,9.739e-05,2]
[407687524,1772674241092,-260.34170297,9.795e-05,2]
[407687525,1772674241103,-4.32004433,9.795e-05,2]
[407687526,1772674241113,-500.0,9.795e-05,2]
[407687527,1772674241123,-502.24314288,9.795e-05,2]
[407687528,1772674241132,-166.17835615,9.795e-05,2]
[407687529,1772674241141,-500.0,9.795e-05,2]
[407687530,1772674241150,-500.0,9.795e-05,2]
[407687531,1772674241160,-106.75845664,9.795e-05,2]
[407687545,1772674242983,-393.24154336,9.795e-05,2]
[407687546,1772674242993,-302.1590929,9.795e-05,2]
[407687552,1772674245802,-197.8409071,9.795e-05,2]
[407687553,1772674245811,-500.0,9.795e-05,2]
[407687554,1772674245820,-500.0,9.795e-05,2]
[407687555,1772674245829,-500.0,9.795e-05,2]
[407687556,1772674245839,-500.0,9.795e-05,2]
[407687557,1772674245848,-500.0,9.795e-05,2]
[407687558,1772674245857,-299.39277123,9.795e-05,2]
[407687559,1772674245868,-200.60722877,9.795e-05,2]
[407687560,1772674245877,-500.0,9.795e-05,2]
[407687561,1772674245886,-500.0,9.795e-05,2]
[407687562,1772674245895,-500.0,9.795e-05,2]
[407687563,1772674245904,-500.0,9.795e-05,2]
[407687564,1772674245913,-500.0,9.795e-05,2]
[407687565,1772674245923,-500.0,9.795e-05,2]
[407687566,1772674245933,-500.0,9.795e-05,2]
[407687567,1772674245941,-500.0,9.795e-05,2]
[407687568,1772674245951,-500.0,9.795e-05,2]
[407687569,1772674245960,-500.0,9.795e-05,2]
[407687570,1772674245970,-500.0,9.795e-05,2]
[407687571,1772674245978,-500.0,9.795e-05,2]
[407687572,1772674245987,-500.0,9.795e-05,2]
[407687573,1772674245996,-500.0,9.795e-05,2]
[407687574,1772674246006,-500.0,9.795e-05,2]
[407687575,1772674246016,-500.0,9.795e-05,2]
[407687576,1772674246025,-167.81016463,9.795e-05,2]
[407687577,1772674246042,-332.18983537,9.795e-05,2]
[407687578,1772674246053,-500.0,9.795e-05,2]
[407687579,1772674246064,-500.0,9.795e-05,2]
[407687580,1772674246400,-500.0,9.795e-05,2]
[407687581,1772674246410,-500.0,9.795e-05,2]
[407687582,1772674246420,-500.0,9.795e-05,2]
[407687583,1772674246430,-337.7021523,9.795e-05,2]
[407687584,1772674246442,-162.2978477,9.795e-05,2]
[407687585,1772674246451,-500.0,9.795e-05,2]
[407687586,1772674246461,-500.0,9.795e-05,2]
[407687587,1772674246473,-500.0,9.795e-05,2]
[407687588,1772674246483,-500.0,9.795e-05,2]
[407687589,1772674246492,-500.0,9.795e-05,2]
[407687590,1772674246501,-500.0,9.795e-05,2]
[407687591,1772674246512,-500.0,9.795e-05,2]
[407687592,1772674246522,-500.0,9.795e-05,2]
[407687593,1772674246531,-500.0,9.795e-05,2]
[407687594,1772674246540,-500.0,9.795e-05,2]
[407687595,1772674246550,-500.0,9.795e-05,2]
[407687596,1772674246559,-500.0,9.795e-05,2]
[407687597,1772674246569,-500.0,9.795e-05,2]
[407687598,1772674246578,-500.0,9.795e-05,2]
[407687599,1772674246588,-500.0,9.795e-05,2]
[407687600,1772674246597,-500.0,9.795e-05,2]
[407687601,1772674246607,-235.23001773,9.795e-05,2]
[407687602,1772674246616,-500.0,9.795e-05,2]
[407687603,1772674246625,-357.75566014,9.795e-05,2]
[407687605,1772674262873,-1062.42075988,6.758e-05,2]
[407687617,1772674595312,2000.0,0.000157,120]
[407687644,1772675431766,-1416.77251714,4.43e-05,2]
[407687645,1772675431776,-2462.91048878,4.475e-05,2]
[407687646,1772675431822,-2168.68887132,4.475e-05,2]
[407687647,1772675431832,-247.88601648,4.498e-05,2]
[407687648,1772675431844,-792.23747263,4.52e-05,2]
[407687649,1772675431855,-4207.76252737,4.52e-05,2]
[407687650,1772675431865,-300.0,4.657e-05,2]
[407687651,1772675431876,-164.0,5e-05,2]
[407687652,1772675431885,-420.0,5.123e-05,2]
[407687653,1772675431895,-250.30219957,6.033e-05,2]
[407687654,1772675431904,-292.50549945,6.498e-05,2]
[407687655,1772675431913,-151.59,8.375e-05,2]
[407687656,1772675431923,-337.12498241,8.497e-05,2]
[407687657,1772675431935,-2876.7147892,8.8e-05,2]
[407687658,1772675431947,-630.03173763,8.8e-05,2]
[407687659,1772675431959,-773.95387244,8.8e-05,2]
[407687660,1772675431970,-594.54488708,8.8e-05,2]
[407687661,1772675432260,-2786.4426475,8.8e-05,2]
[407687698,1772675437874,-500.0,8.799e-05,2]
[407687700,1772675437885,-178.09553783,8.799e-05,2]
[407687702,1772675437895,-500.0,8.799e-05,2]
[407687704,1772675437906,-500.0,8.799e-05,2]
[407687706,1772675437915,-500.0,8.799e-05,2]
[407687708,1772675437925,-500.0,8.799e-05,2]
[407687710,1772675437935,-500.0,8.799e-05,2]
[407687712,1772675437947,-500.0,8.799e-05,2]
[407687714,1772675437957,-500.0,8.799e-05,2]
[407687716,1772675437967,-550.0,8.799e-05,2]
[407687718,1772675437977,-500.0,8.799e-05,2]
[407687720,1772675437987,-500.0,8.799e-05,2]
[407687722,1772675437996,-500.0,8.799e-05,2]
[407687724,1772675438005,-500.0,8.799e-05,2]
[407687726,1772675438015,-500.0,8.799e-05,2]
[407687728,1772675438025,-500.0,8.799e-05,2]
[407687730,1772675438035,-165.45441283,8.799e-05,2]
[407687732,1772675438045,-500.0,8.799e-05,2]
[407687734,1772675438054,-500.0,8.799e-05,2]
[407687736,1772675438068,-241.88428924,8.799e-05,2]
[407687741,1772675438115,-258.11571076,8.799e-05,2]
[407687743,1772675438125,-500.0,8.799e-05,2]
[407687745,1772675438135,-628.46953896,8.799e-05,2]
[407687746,1772675438145,-500.0,8.799e-05,2]
[407687747,1772675438155,-500.0,8.799e-05,2]
[407687748,1772675438165,-500.0,8.799e-05,2]
[407687749,1772675438175,-500.0,8.799e-05,2]
[407687750,1772675438184,-500.0,8.799e-05,2]
[407687751,1772675438194,-500.0,8.799e-05,2]
[407687752,1772675438203,-500.0,8.799e-05,2]
[407687753,1772675438214,-500.0,8.799e-05,2]
[407687754,1772675438224,-500.0,8.799e-05,2]
[407687755,1772675438234,-500.0,8.799e-05,2]
[407687756,1772675438243,-500.0,8.799e-05,2]
[407687757,1772675438254,-500.0,8.799e-05,2]
[407687758,1772675438264,-500.0,8.799e-05,2]
[407687759,1772675438278,-500.0,8.799e-05,2]
[407687760,1772675438287,-500.0,8.799e-05,2]
[407687761,1772675438298,-500.0,8.799e-05,2]
[407687762,1772675438308,-500.0,8.799e-05,2]
[407687763,1772675438322,-500.0,8.799e-05,2]
[407687764,1772675438331,-500.0,8.799e-05,2]
[407687765,1772675438340,-500.0,8.799e-05,2]
[407687766,1772675438350,-500.0,8.799e-05,2]
[407687767,1772675438359,-500.0,8.799e-05,2]
[407687768,1772675438369,-500.0,8.799e-05,2]
[407687769,1772675438379,-500.0,8.799e-05,2]
[407687770,1772675438389,-500.0,8.799e-05,2]
[407687771,1772675438398,-46223.68821911,8.8e-05,2]
[407687784,1772675444489,-2210.22743434,8.8e-05,2]
[407687792,1772675445960,-24150.12583975,8.8e-05,2]
[407687793,1772675445971,-6779.08635505,8.8e-05,2]
[407687794,1772675446072,-540.92371165,8.8e-05,2]
[407687928,1772676632200,-500.0,7.178e-05,2]
[407687929,1772676632242,-891.0,7.178e-05,2]
[407687944,1772676637999,-3609.0,7.178e-05,2]
[407687945,1772676638009,-522.0,7.25e-05,2]
[407687946,1772676638018,-323.70027096,7.25e-05,2]
[407687947,1772676638028,-3129.21996653,7.289e-05,2]
[407687948,1772676638039,-6870.78003347,7.289e-05,2]
[407687949,1772676638048,-537.97357664,7.632e-05,2]
[407687950,1772676638058,-839.74312979,7.632e-05,2]
[407687951,1772676638069,-233.99510568,7.752e-05,2]
[407687952,1772676638079,-263.912547,8.204e-05,2]
[407687953,1772676638090,-408.03971404,8.4e-05,2]
[407687954,1772676638101,-765.06999662,8.4e-05,2]
[407687955,1772676638113,-263.912547,8.55e-05,2]
[407687956,1772676638122,-359.06294153,8.596e-05,2]
[407687957,1772676638837,-140.93705847,8.596e-05,2]
[407687958,1772676638849,-500.0,8.596e-05,2]
[407687959,1772676638870,-500.0,8.596e-05,2]
[407687960,1772676638886,-500.0,8.596e-05,2]
[407687961,1772676638895,-202.77406202,8.596e-05,2]
[407688274,1772676643140,-297.22593798,8.596e-05,2]
[407688276,1772676643152,-28.33283499,8.596e-05,2]
[407688280,1772676643194,-471.66716501,8.596e-05,2]
[407688282,1772676643203,-228.72505482,8.596e-05,2]